bitfinex/quotes_ETHUSD_20240709
["timestamp","ask_amount","ask_price","bid_price","bid_amount"]
[1720556520593,0.20176592,3078.9,3077.6,0.37005391]
[1720556520797,1.46777785,3078.8,3077.6,0.37005391]
[1720556520995,1.46777785,3078.7,3077.6,0.37005391]
[1720556521173,1.46777785,3078.6,3077.4,0.3860762]
[1720556521375,0.3402678,3078.6,3077.4,0.3860762]
[1720556521604,1.12575028,3078.5,3077.4,3.3860762]
[1720556521817,0.3402678,3078.6,3077.5,0.66356462]
[1720556522027,1.1257502,3078.5,3077.5,0.66356462]
[1720556522328,0.3402678,3078.6,3077.5,0.66356462]
[1720556522624,1.12575081,3078.5,3077.5,0.66356462]
[1720556522830,1.12575081,3078.4,3077.6,0.40496408]
[1720556523127,0.3402678,3078.6,3077.6,0.40496408]
[1720556523427,1.12576299,3078.5,3077.4,0.3860762]
[1720556523736,0.3402678,3078.6,3077.5,0.064967]
[1720556523876,1.12575891,3078.4,3077.5,0.064967]
[1720556524079,0.3402678,3078.6,3077.4,0.3860762]
[1720556524276,1.12574829,3078.5,3077.5,0.33860762]
[1720556524518,1.12576772,3078.4,3077.5,0.33860762]
[1720556524717,1.12576772,3078.3,3077.5,0.33860762]
[1720556524925,0.3402678,3078.6,3077.5,0.33860762]
[1720556525085,1.12575395,3078.5,3077.5,0.33860762]
[1720556525285,1.12575395,3078.4,3077.5,0.33860762]
[1720556525580,1.12575395,3078.5,3077.5,0.33860762]
[1720556525893,1.12575395,3078.4,3077.5,0.33860762]
[1720556526094,1.12575395,3078.5,3077.5,0.33860762]
[1720556526713,1.12573368,3078.4,3077.5,0.33860762]
[1720556527025,1.12573368,3078.3,3077.5,0.33860762]
[1720556527318,1.12573368,3078.2,3077.5,0.33860762]
[1720556527505,1.12573368,3078.5,3077.5,0.33860762]
[1720556527708,1.12573368,3078.4,3077.5,0.33860762]
[1720556527914,1.12573368,3078.5,3077.6,2.331]
[1720556528233,1.12573368,3078.5,3077.7,0.26696076]
[1720556533092,0.3402678,3078.6,3077.7,0.26696076]
[1720556533292,1.12569121,3078.5,3077.7,0.26696076]
[1720556533526,1.12569121,3078.4,3077.7,0.33192811]
[1720556533692,0.3402678,3078.6,3077.8,0.32476182]
[1720556533892,1.12569271,3078.5,3077.8,0.32476182]
[1720556534225,0.3402678,3078.6,3077.8,0.32476182]
[1720556534226,1.12569271,3078.4,3077.8,0.32476182]
[1720556534422,1.12569271,3078.3,3077.8,0.32476182]
[1720556534735,1.12569271,3078.2,3077.8,0.32476182]
[1720556534885,1.12569271,3078.1,3077.8,0.32476182]
[1720556535086,0.3402678,3078.6,3077.8,0.32476182]
[1720556535286,1.12561225,3078.5,3077.8,0.32476182]
[1720556535521,1.12561225,3078.4,3077.8,0.32476182]
[1720556535729,1.12561225,3078.5,3077.8,0.32476182]
[1720556536299,1.12561225,3078.5,3077.9,0.33247618]
[1720556536526,0.3402678,3078.6,3077.9,3.64639913]
[1720556536683,1.12559274,3078.5,3078.1,2.331]
[1720556536890,1.12559274,3078.4,3078.2,0.857985]
[1720556537192,1.12559274,3078.3,3078.2,0.857985]
[1720556537795,9.50104251,3079.3,3078.2,0.857985]
[1720556537796,1.70086876,3079.3,3078.2,7.106635]
[1720556538140,0.34020821,3079.0,3078.4,3.24843]
[1720556538291,0.34020821,3079.0,3078.6,2.331]
[1720556538292,1.12540173,3078.9,3078.6,2.331]
[1720556538494,1.70086876,3080.0,3078.9,2.331]
[1720556538691,1.12511087,3079.9,3079.4,2.826]
[1720556538931,1.12511087,3079.8,3079.5,0.2826]
[1720556539089,0.34012666,3079.9,3079.5,0.2826]
[1720556539292,1.12499102,3079.8,3079.6,2.4412]
[1720556539591,0.34012666,3079.9,3079.7,0.27238]
[1720556541623,0.34012666,3079.9,3079.7,0.33730797]
[1720556542309,0.34012666,3079.9,3079.7,0.27238]
[1720556543537,0.05663025,3080.9,3079.7,3.51943]
[1720556543689,1.12484841,3080.8,3079.9,3.24685]
[1720556543892,0.34008042,3080.4,3079.9,3.24685]
[1720556544209,0.34008042,3080.4,3079.8,0.66097959]
[1720556544210,1.69819334,3081.1,3080.0,0.39078296]
[1720556544418,0.05662728,3081.2,3079.8,3.843023]
[1720556544419,0.34008362,3080.4,3079.8,3.843023]
[1720556544593,3.0,3081.1,3079.8,3.843023]
[1720556544936,0.34007838,3080.4,3080.0,5.1776]
[1720556545092,0.55,3081.5,3080.1,3.24664]
[1720556545288,0.34005949,3080.7,3080.5,3.24621]
[1720556545586,0.0566143,3081.8,3080.5,3.570831]
[1720556545789,0.0566143,3081.8,3080.5,0.3895269]
[1720556545790,0.34004136,3080.8,3080.5,0.3895269]
[1720556546316,0.3400413,3080.8,3080.5,0.3895269]
[1720556546520,0.3400413,3080.8,3080.6,0.64618169]
[1720556551904,0.3400413,3080.8,3080.5,0.324621]
[1720556552722,0.3400413,3080.8,3080.4,2.826]
[1720556552932,0.3400413,3080.8,3079.7,3.0]
[1720556553110,0.3400413,3080.8,3079.8,3.0]
[1720556553321,0.3400413,3080.8,3079.7,3.0]
[1720556553517,0.3400413,3080.8,3079.6,3.0]
[1720556553742,0.3400413,3080.8,3079.7,3.24699]
[1720556553974,0.3400413,3080.8,3079.8,3.06491993]
[1720556554509,0.3400413,3080.8,3079.9,2.826]
[1720556554818,0.3400413,3080.8,3079.9,2.89091998]
[1720556555336,0.3400413,3080.8,3080.1,0.06491978]
[1720556555926,0.3400413,3080.8,3079.9,6.07277]
[1720556556536,0.3400413,3080.8,3079.9,9.31956]
[1720556556727,0.3400413,3080.8,3080.1,0.06491585]
[1720556556927,0.3400413,3080.8,3080.2,0.24165158]
[1720556559252,0.3400413,3080.8,3080.0,2.3516]
[1720556562960,0.3400413,3080.8,3080.0,2.41651607]
[1720556564279,0.3400413,3080.8,3080.1,3.24662]
[1720556564435,0.3400413,3080.8,3080.2,3.31144255]
[1720556564638,0.3400413,3080.8,3080.2,3.24653]
[1720556564866,0.3400413,3080.8,3080.3,0.324653]
[1720556568181,1.12477325,3080.7,3080.3,0.324653]
[1720556568675,1.12477325,3080.6,3080.3,0.324653]
[1720556568867,1.12477325,3080.7,3080.3,0.324653]
[1720556569071,1.12477325,3080.7,3080.4,0.3571113]
[1720556569666,1.1247709,3080.6,3080.4,0.3571113]
[1720556569970,0.3400413,3080.8,3080.4,0.3571113]
[1720556570174,1.12477187,3080.7,3080.4,0.3571113]
[1720556570376,1.12477187,3080.6,3080.4,0.3571113]
[1720556570577,0.3400413,3080.8,3080.4,0.3571113]
[1720556570780,1.12477183,3080.7,3080.4,0.3571113]
[1720556570981,1.12477183,3080.6,3080.2,3.24646]
[1720556571176,1.12477183,3081.2,3080.2,6.49294]
[1720556571350,1.12477183,3081.1,3080.3,0.649294]
[1720556571558,1.12477183,3081.3,3080.3,0.649294]
[1720556572347,1.12477183,3081.3,3080.3,3.895714]
[1720556572965,1.1247646,3081.2,3080.3,3.895714]
[1720556573161,1.1247646,3081.1,3080.4,0.7142174]
[1720556573359,3.0,3081.4,3080.4,3.9604774]
[1720556573566,1.12476442,3081.3,3080.4,3.24626]
[1720556573859,1.12476442,3081.2,3080.4,6.49252]
[1720556574057,3.0,3081.4,3080.4,3.24626]
[1720556574272,1.12475344,3081.3,3080.5,0.324626]
[1720556574587,3.0,3081.4,3080.5,0.324626]
[1720556574588,1.12475344,3081.2,3080.5,0.324626]
[1720556574752,1.12475344,3081.1,3080.5,0.324626]
[1720556574942,1.12475344,3081.0,3080.5,0.324626]
[1720556575147,1.12475344,3080.9,3080.5,0.324626]
[1720556575348,1.12475344,3080.8,3080.5,0.324626]
[1720556575587,1.12475344,3080.7,3080.6,0.3570886]
[1720556576206,3.0,3081.8,3080.6,0.3570886]
[1720556576511,1.12460543,3081.7,3080.6,0.3570886]
[1720556576673,3.26523536,3081.9,3080.6,0.3570886]
[1720556576674,1.12460543,3081.6,3080.6,0.3570886]
[1720556576843,0.41246054,3081.6,3080.6,0.3570886]
[1720556577044,1.12460543,3081.5,3080.6,0.3570886]
[1720556577551,1.12460543,3081.5,3080.8,2.3242]
[1720556577750,0.05661103,3082.3,3080.8,2.3242]
[1720556577751,1.12460543,3081.7,3080.9,3.24574]
[1720556577956,1.12460543,3081.6,3080.9,0.06490351]
[1720556578264,0.3255,3082.7,3080.9,0.06490351]
[1720556578265,1.12460543,3081.5,3081.1,9.31701]
[1720556578466,2.5983,3082.7,3081.2,3.24548]
[1720556578670,2.13024346,3082.5,3081.2,4.20107203]
[1720556578858,1.12441346,3082.4,3081.2,4.20107203]
[1720556579057,1.12441346,3082.3,3081.2,4.20107203]
[1720556579402,1.12441346,3082.2,3081.2,4.20107203]
[1720556579606,1.12440811,3082.1,3081.3,0.7027072]
[1720556579898,3.0,3082.6,3081.1,2.826]
[1720556579899,1.12440811,3082.0,3081.1,6.07153]
[1720556580105,1.12440811,3082.5,3081.2,0.63104404]
[1720556580305,3.0,3082.6,3080.8,2.3242]
[1720556580306,3.39720811,3081.9,3080.8,2.3242]
[1720556580457,3.39720811,3081.9,3080.3,5.3242]
[1720556580458,1.67440811,3081.8,3080.3,5.3242]
[1720556580656,1.51912892,3081.7,3080.4,3.77873]
[1720556580900,1.12440811,3081.6,3080.4,3.77866]
[1720556581056,1.12440811,3081.6,3080.4,0.53242]
[1720556581261,1.12440811,3081.5,3080.8,3.2459]
[1720556581480,1.12440811,3081.7,3080.9,0.32459]
[1720556581679,1.12440811,3081.6,3080.9,0.32459]
[1720556581882,1.12450262,3081.5,3080.9,0.32459]
[1720556582089,1.12450262,3081.4,3081.0,3.602739]
[1720556582354,0.33996498,3081.8,3081.1,5.2979]
[1720556582597,1.12439988,3081.7,3081.2,6.49086]
[1720556582829,0.33996498,3081.8,3081.3,1.178876]
[1720556583672,0.33996498,3081.8,3081.1,2.4719]
[1720556584094,0.33996498,3081.8,3081.1,5.7174]
[1720556584565,0.33996498,3081.8,3081.2,3.24547]
[1720556585506,0.33996498,3081.8,3081.1,2.4719]
[1720556585805,1.12443971,3081.7,3080.9,0.32459]
[1720556585974,1.12443971,3081.7,3080.6,11.54395]
[1720556585975,0.33996498,3081.8,3080.7,3.0]
[1720556586314,1.12447525,3081.7,3080.7,3.0]
[1720556586602,0.33996498,3081.8,3080.7,3.0]
[1720556586603,1.12447525,3081.6,3080.7,3.0]
[1720556586809,1.12447525,3081.7,3080.7,3.0]
[1720556587008,1.38861175,3081.7,3080.6,3.0]
[1720556587216,1.12447525,3081.6,3080.6,3.0]
[1720556587561,1.12447525,3081.6,3080.4,0.53242]
[1720556587869,2.64383697,3081.6,3080.5,8.594876]
[1720556588068,1.12447525,3081.5,3080.5,8.594876]
[1720556588297,1.12464764,3081.4,3080.5,8.594876]
[1720556588511,0.34292199,3081.6,3080.5,8.594876]
[1720556588512,1.12464628,3081.3,3080.5,8.594876]
[1720556588666,1.12464628,3081.2,3080.6,0.9127296]
[1720556588867,0.34292199,3081.6,3080.6,0.9127296]
[1720556589069,1.12463938,3081.5,3080.4,3.77874]
[1720556589291,1.12463938,3081.4,3080.6,6.07209]
[1720556589492,1.12463938,3081.3,3080.7,0.607209]
[1720556589875,0.33996498,3081.8,3080.9,3.24578]
[1720556590082,0.33996498,3081.8,3081.0,4.138918]
[1720556590083,1.12446755,3081.7,3081.0,4.138918]
[1720556590338,0.33996498,3081.8,3081.0,4.138918]
[1720556590478,1.12445035,3081.7,3081.0,4.138918]
[1720556590678,0.33996498,3081.8,3081.1,0.4138918]
[1720556590881,1.12445551,3081.7,3081.1,0.4138918]
[1720556591088,0.33996498,3081.8,3081.1,0.4138918]
[1720556591289,1.12442249,3081.7,3081.1,0.4138918]
[1720556591611,0.33996498,3081.8,3081.1,0.4138918]
[1720556591612,1.12451663,3081.6,3081.1,0.4138918]
[1720556591809,1.12451663,3081.5,3081.0,0.893268]
[1720556592123,0.33996498,3081.8,3080.8,2.441]
[1720556592438,1.12447346,3081.7,3081.1,3.24558]
[1720556592585,1.12447346,3081.6,3081.1,3.24558]
[1720556592784,0.33996498,3081.8,3080.8,2.441]
[1720556592785,0.33996498,3081.8,3081.2,0.324558]
[1720556592991,1.12447109,3081.7,3080.9,3.24574]
[1720556593213,0.33996498,3081.8,3080.9,3.24573]
[1720556593214,1.12447109,3081.6,3080.9,3.24573]
[1720556593395,1.12447109,3081.7,3081.0,0.568673]
[1720556593614,0.33996498,3081.8,3081.0,0.568673]
[1720556593615,1.12446075,3081.6,3081.0,0.568673]
[1720556593792,0.33996498,3081.8,3081.1,0.3814403]
[1720556596300,1.12447839,3081.7,3081.1,0.3814403]
[1720556596821,0.33996498,3081.8,3081.1,0.3814403]
[1720556598589,0.33996498,3081.8,3080.9,3.2458]
[1720556599204,0.34083148,3081.7,3080.9,3.2458]
[1720556599513,0.34083363,3081.6,3080.9,3.2458]
[1720556599710,0.33996498,3081.8,3081.0,0.56868]
[1720556599896,0.34082599,3081.7,3081.0,0.56868]
[1720556600434,0.34082599,3081.7,3080.8,2.441]
[1720556601996,0.34082599,3081.6,3080.5,3.0]
[1720556602198,0.34082599,3081.6,3079.8,0.67479408]
[1720556602199,3.34082599,3081.6,3079.8,0.67479408]
[1720556602446,1.46643859,3081.5,3079.9,0.63951441]
[1720556602614,1.46643859,3081.5,3079.8,0.67479408]
[1720556602615,2.826,3081.3,3079.8,0.67479408]
[1720556602800,2.3129,3081.1,3079.8,0.67479408]
[1720556602995,1.15619859,3081.0,3079.8,0.67479408]
[1720556603200,0.34082599,3080.9,3079.8,0.67479408]
[1720556603404,0.55,3080.8,3079.8,0.67479408]
[1720556603707,0.34082599,3080.7,3079.8,0.67479408]
[1720556603911,0.55,3080.8,3079.8,0.67479408]
[1720556604148,0.3413873,3080.7,3079.8,0.67479408]
[1720556604430,0.3413873,3080.6,3079.8,0.67479408]
[1720556604593,0.3413873,3080.5,3079.8,0.67479408]
[1720556604796,0.3413873,3080.4,3079.8,0.67479408]
[1720556605032,0.3413873,3080.3,3079.8,0.67479408]
[1720556605238,0.3413873,3080.2,3079.8,0.67479408]
[1720556605405,0.3413873,3080.1,3079.8,0.67479408]
[1720556605714,0.43731999,3080.8,3079.8,0.67479408]
[1720556605917,0.3413892,3080.7,3079.8,0.67479408]
[1720556606401,0.3413892,3080.7,3079.8,0.8434926]
[1720556606997,0.3413892,3080.7,3079.8,0.90841512]
[1720556607203,0.3413892,3080.6,3079.8,4.0904426]
[1720556607402,3.0,3081.0,3079.8,4.0904426]
[1720556607697,0.34120932,3080.9,3079.9,0.73375026]
[1720556608010,0.34120379,3080.8,3079.9,0.73375026]
[1720556608213,0.34120379,3080.7,3079.9,0.73375026]
[1720556608530,0.34121279,3080.6,3080.0,0.48241929]
[1720556608691,3.0,3081.0,3080.0,0.48241929]
[1720556608892,0.3412057,3080.9,3080.0,0.48241929]
[1720556609143,0.3412057,3080.8,3080.0,0.48241929]
[1720556610615,1.69946621,3080.7,3079.3,5.67436]
[1720556610817,0.3412057,3080.6,3079.4,3.0]
[1720556611015,1.69946621,3080.5,3079.5,0.867436]
[1720556611213,0.3412057,3080.6,3079.5,0.867436]
[1720556611214,0.3412057,3080.4,3079.5,0.867436]
[1720556611431,0.3412057,3080.3,3079.6,0.3867436]
[1720556611637,3.0,3080.7,3079.6,0.3867436]
[1720556611841,1.69927365,3080.5,3079.5,0.867436]
[1720556611999,0.34136948,3080.4,3079.5,0.867436]
[1720556612403,0.34136948,3080.3,3079.5,0.867436]
[1720556612628,1.69927365,3080.5,3079.5,0.867436]
[1720556612800,0.34139163,3080.4,3079.6,0.3867436]
[1720556613017,0.34139163,3080.3,3079.4,3.0]
[1720556613327,1.69927365,3080.5,3079.3,2.4269]
[1720556613328,0.34139163,3080.2,3079.3,2.4269]
[1720556613531,0.34143511,3080.1,3079.4,0.24269]
[1720556613750,1.69927365,3080.4,3079.4,0.24269]
[1720556613911,0.34147336,3080.3,3079.4,0.24269]
[1720556614109,1.12514756,3080.2,3079.4,0.24269]
[1720556614322,1.46662092,3080.1,3079.4,0.24269]
[1720556614519,0.1869201,3080.3,3079.4,0.24269]
[1720556614740,1.46662388,3080.2,3079.4,0.24269]
[1720556614923,0.1869201,3080.3,3079.4,0.24269]
[1720556615145,1.46663219,3080.2,3079.4,0.24269]
[1720556615337,0.1869201,3080.3,3079.4,0.24269]
[1720556615521,0.1869201,3080.3,3079.3,2.4269]
[1720556615522,1.80226171,3080.2,3079.3,2.4269]
[1720556615720,1.46664219,3080.1,3078.9,2.4454]
[1720556615941,1.46664219,3080.0,3079.0,0.54454]
[1720556616138,1.12512559,3079.9,3079.0,0.54454]
[1720556616322,1.12512559,3080.1,3079.1,0.298994]
[1720556616525,0.3415671,3080.0,3078.9,2.4454]
[1720556616830,1.12512559,3079.9,3078.9,2.4454]
[1720556617042,1.12512559,3079.9,3079.0,0.54454]
[1720556617245,1.12512559,3080.1,3079.0,0.54454]
[1720556617534,3.33568475,3080.2,3079.0,3.79234]
[1720556617535,3.0,3080.2,3079.0,3.79234]
[1720556617847,1.12514664,3080.1,3079.1,0.948556]
[1720556618056,3.16992737,3080.4,3079.1,0.948556]
[1720556618223,1.95342249,3080.3,3079.2,0.4740896]
[1720556618415,0.4868281,3080.3,3079.2,0.4740896]
[1720556618615,1.12513607,3080.2,3079.2,0.4740896]
[1720556618862,2.03669972,3080.5,3079.2,0.4740896]
[1720556618863,1.12513607,3080.1,3079.2,0.4740896]
[1720556619024,3.0,3080.4,3079.2,0.4740896]
[1720556619223,1.97596626,3080.3,3079.2,0.4740896]
[1720556619435,1.12515343,3080.2,3079.2,0.4740896]
[1720556620251,1.12515343,3080.2,3079.1,0.948556]
[1720556621439,1.12515343,3080.2,3079.0,0.54454]
[1720556621667,0.34157927,3080.1,3079.0,0.54454]
[1720556621870,1.12527473,3080.0,3079.0,0.54454]
[1720556622080,1.12527473,3079.9,3078.9,2.4454]
[1720556622255,1.12527473,3080.1,3078.9,2.4454]
[1720556622456,1.69566434,3079.9,3078.5,2.2708]
[1720556622659,1.46687587,3079.8,3078.5,2.2708]
[1720556622865,2.08312989,3079.7,3078.6,0.22708]
[1720556623167,1.12527473,3079.6,3078.6,0.22708]
[1720556623798,1.12527473,3079.5,3078.6,0.22708]
[1720556623959,1.12527473,3079.8,3078.6,0.22708]
[1720556624167,1.12527473,3079.8,3078.7,0.249788]
[1720556624168,0.41252747,3079.7,3078.7,0.249788]
[1720556624348,1.12527473,3079.6,3078.7,0.249788]
[1720556624553,1.12527473,3079.8,3078.7,0.249788]
[1720556624748,1.12527473,3079.7,3078.7,0.249788]
[1720556624952,1.58565116,3080.1,3078.7,0.249788]
[1720556625190,1.46694546,3080.0,3078.7,0.249788]
[1720556625387,1.12531505,3079.9,3078.7,0.249788]
[1720556625690,1.52635269,3080.0,3078.7,0.249788]
[1720556625892,1.12531505,3079.9,3078.7,0.249788]
[1720556626186,1.12531505,3079.8,3078.7,0.249788]
[1720556626395,1.51145646,3079.9,3078.7,0.249788]
[1720556626565,1.12531505,3079.8,3078.7,0.249788]
[1720556628561,1.12531659,3079.7,3078.7,0.249788]
[1720556628897,0.38614141,3079.9,3078.7,0.249788]
[1720556629199,1.12531729,3079.8,3078.7,0.249788]
[1720556629403,1.12531729,3079.7,3078.7,0.249788]
[1720556629702,1.12532742,3079.6,3078.7,0.249788]
[1720556629902,1.12532742,3079.5,3078.7,0.249788]
[1720556630194,3.46037643,3080.1,3078.7,0.249788]
[1720556630195,4.12532742,3080.0,3078.7,0.249788]
[1720556630403,1.12532742,3079.9,3078.7,0.249788]
[1720556630607,1.12532742,3079.8,3078.7,0.249788]
[1720556630810,1.12532742,3079.7,3078.7,0.249788]
[1720556631004,1.12532742,3079.6,3078.7,0.249788]
[1720556631306,1.12532742,3080.0,3078.7,0.249788]
[1720556631477,1.12532742,3079.9,3078.7,0.249788]
[1720556633011,0.55,3079.8,3078.5,2.2708]
[1720556633192,1.12532742,3079.7,3078.5,2.2708]
[1720556635094,0.55,3079.8,3078.5,2.2708]
[1720556635318,1.12539546,3079.6,3078.5,2.2708]
[1720556635634,1.12539546,3079.5,3078.5,2.2708]
[1720556636034,1.12539546,3079.4,3078.5,2.2708]
[1720556636222,1.12539546,3079.8,3078.5,2.78048]
[1720556636392,0.55,3079.7,3078.5,2.78048]
[1720556636597,1.12539546,3079.6,3078.5,2.78048]
[1720556636797,1.12539546,3079.5,3078.5,2.78048]
[1720556637102,0.55,3079.7,3078.5,2.78048]
[1720556637103,1.12539546,3079.4,3078.6,0.278048]
[1720556637305,1.12539546,3079.3,3078.6,0.278048]
[1720556637507,1.12539546,3079.2,3078.6,0.278048]
[1720556637727,0.55,3079.7,3078.6,0.278048]
[1720556637897,1.12538793,3079.6,3078.6,0.278048]
[1720556638224,1.12538793,3079.5,3078.5,2.78048]
[1720556638639,1.12539634,3079.4,3078.5,2.78048]
[1720556638795,1.12539634,3079.3,3078.5,2.2708]
[1720556639128,1.12539762,3079.2,3078.5,2.2708]
[1720556639335,1.12539762,3079.1,3078.5,2.2708]
[1720556639499,0.05665878,3079.6,3078.5,2.2708]
[1720556639500,1.12539762,3079.0,3078.6,0.22708]
[1720556639701,0.05665878,3079.6,3078.6,0.22708]
[1720556639896,1.46710631,3079.5,3078.6,0.22708]
[1720556640115,1.12539775,3079.4,3078.6,0.22708]
[1720556640455,1.12539775,3079.3,3078.7,0.249788]
[1720556640741,1.12539775,3079.2,3078.7,0.249788]
[1720556641033,3.97016042,3079.9,3078.7,0.249788]
[1720556641336,0.05665975,3079.6,3078.5,2.2708]
[1720556641519,1.46709863,3079.5,3078.5,2.2708]
[1720556641729,1.1253938,3079.4,3078.5,2.2708]
[1720556641917,0.05665975,3079.6,3078.5,2.2708]
[1720556641918,1.1253938,3079.3,3078.5,2.2708]
[1720556642134,1.1253938,3079.2,3078.6,0.22708]
[1720556642309,1.1253938,3079.1,3078.6,0.22708]
[1720556642510,1.1253938,3079.0,3078.6,0.22708]
[1720556642807,1.1253938,3078.9,3078.6,0.22708]
[1720556643003,0.05665975,3079.6,3078.7,0.249788]
[1720556643203,1.46708998,3079.5,3078.7,0.249788]
[1720556643406,1.46712581,3079.4,3078.5,2.2708]
[1720556643599,1.12538843,3079.3,3078.5,2.2708]
[1720556643943,0.05665975,3079.6,3078.5,2.2708]
[1720556643944,1.12538843,3079.2,3078.5,2.2708]
[1720556644249,1.12538843,3079.5,3078.5,2.49788]
[1720556644441,0.05665975,3079.6,3078.5,2.49788]
[1720556644600,1.46720751,3079.5,3078.5,2.49788]
[1720556644800,1.46720751,3079.4,3078.5,2.2708]
[1720556645012,1.46720751,3079.3,3078.5,2.2708]
[1720556645225,1.46723274,3079.2,3078.5,2.2708]
[1720556645436,1.12544978,3079.1,3078.5,2.2708]
[1720556645795,5.00382239,3079.5,3078.5,2.2708]
[1720556645796,1.46729318,3079.0,3078.5,2.2708]
[1720556646229,1.46733263,3078.9,3078.1,7.47]
[1720556646446,1.46733263,3078.8,3078.2,0.747]
[1720556646637,1.12544978,3078.7,3078.2,0.747]
[1720556646816,1.12544978,3079.1,3078.2,0.747]
[1720556647016,1.12544978,3079.1,3078.1,2.4451]
[1720556647017,0.34189313,3079.0,3078.1,2.4451]
[1720556647235,0.34189313,3078.9,3078.1,2.4451]
[1720556647551,1.12544978,3078.8,3078.2,0.24451]
[1720556647833,1.12552713,3078.7,3078.3,0.268961]
[1720556648042,1.12552713,3078.6,3078.3,0.268961]
[1720556648245,1.12549753,3078.6,3078.3,0.268961]
[1720556648552,4.70068963,3079.3,3078.4,2.3606]
[1720556648553,1.12549753,3078.5,3078.4,2.3606]
[1720556648716,1.70068963,3079.7,3078.6,3.2482]
[1720556648916,1.46696018,3079.6,3078.8,2.3606]
[1720556649127,0.34019015,3080.0,3078.8,2.3606]
[1720556649128,1.46696018,3079.5,3078.8,2.3606]
[1720556649423,1.12532262,3079.4,3078.8,2.3606]
[1720556649630,1.12532262,3079.3,3078.9,0.560871]
[1720556649945,1.12532262,3079.2,3078.9,0.560871]
[1720556650246,1.90477761,3079.9,3078.8,2.3606]
[1720556650412,1.46678889,3079.8,3078.8,2.3606]
[1720556650624,0.34155434,3079.7,3078.8,2.3606]
[1720556651008,1.46678967,3079.6,3078.8,2.3606]
[1720556651215,1.46678967,3079.5,3078.9,0.23606]
[1720556651529,1.12523495,3079.4,3078.9,0.23606]
[1720556651852,1.12523495,3079.3,3078.9,0.23606]
[1720556652021,1.12523495,3079.2,3078.9,0.23606]
[1720556652227,4.70135794,3079.8,3079.0,0.259666]
[1720556652431,1.4667856,3079.7,3079.0,0.259666]
[1720556652720,1.4667856,3079.6,3079.0,0.259666]
[1720556652928,1.4667856,3079.5,3079.0,0.259666]
[1720556653138,1.12523286,3079.4,3079.0,0.259666]
[1720556653327,1.12523286,3079.7,3079.0,0.259666]
[1720556653528,0.34155306,3079.6,3079.0,0.259666]
[1720556653739,1.12523286,3079.5,3079.0,0.259666]
[1720556653924,0.34155306,3079.4,3079.0,0.259666]
[1720556654140,0.20408798,3079.9,3079.0,0.259666]
[1720556654342,1.12523589,3079.3,3079.0,0.259666]
[1720556654548,1.12523589,3079.2,3079.0,0.259666]
[1720556654847,1.70203355,3079.7,3078.8,2.3606]
[1720556655048,1.46679206,3079.6,3078.8,2.3606]
[1720556655259,1.46679206,3079.5,3078.8,2.3606]
[1720556655558,1.46679206,3079.4,3078.8,2.3606]
[1720556655858,1.70203355,3079.7,3078.8,2.3606]
[1720556655859,1.46679206,3079.3,3078.9,0.2425545]
[1720556656016,1.12523618,3079.3,3078.9,0.2425545]
[1720556656218,1.12523618,3079.2,3079.0,0.26031545]
[1720556656411,1.70203355,3079.7,3079.0,0.26031545]
[1720556656620,1.46677672,3079.6,3079.0,0.26031545]
[1720556656952,1.46677672,3079.5,3079.0,0.26031545]
[1720556657143,1.46677672,3079.4,3079.0,0.26031545]
[1720556657343,1.46677672,3079.3,3079.0,0.26031545]
[1720556657542,1.70397418,3079.7,3079.0,0.26031545]
[1720556657718,1.46676809,3079.6,3079.0,0.26031545]
[1720556657921,1.70397418,3079.7,3079.0,0.26031545]
[1720556658136,1.46676535,3079.6,3079.0,0.26031545]
[1720556658331,1.46676535,3079.5,3079.0,0.26031545]
[1720556658562,1.46676535,3079.4,3079.0,0.26031545]
[1720556658879,1.46676535,3079.3,3079.0,0.26031545]
[1720556659078,0.34154664,3079.2,3079.0,0.26031545]
[1720556659236,1.70448035,3079.6,3079.0,0.26031545]
[1720556659439,1.46677065,3079.5,3079.0,0.26031545]
[1720556659664,1.46677065,3079.4,3079.0,0.26031545]
[1720556659869,1.46677065,3079.3,3079.0,0.26031545]
[1720556660082,0.34154498,3079.2,3079.0,0.26031545]
[1720556660436,1.70448035,3079.6,3079.0,0.26031545]
[1720556660637,1.46677803,3079.5,3079.0,0.26031545]
[1720556660869,0.34154906,3079.4,3079.0,0.26031545]
[1720556661059,1.46677946,3079.3,3079.0,0.26031545]
[1720556661251,1.70464793,3079.6,3078.8,2.3606]
[1720556661252,0.34154976,3079.2,3078.8,2.3606]
[1720556661452,0.34154976,3079.1,3078.8,2.3606]
[1720556661668,1.70464793,3079.5,3078.8,3.34366]
[1720556661946,2.04557752,3079.8,3078.8,3.34366]
[1720556661947,1.46680003,3079.4,3078.8,3.34366]
[1720556662141,1.46680003,3079.3,3078.8,3.34366]
[1720556662352,0.34155975,3079.2,3078.9,0.334366]
[1720556662683,0.34155975,3079.1,3078.9,0.334366]
[1720556662855,1.70464793,3079.5,3078.9,0.334366]
[1720556663054,1.46680347,3079.4,3078.9,0.334366]
[1720556663252,1.46680347,3079.3,3078.9,0.334366]
[1720556663572,0.34156142,3079.2,3078.9,0.334366]
[1720556663772,0.34156142,3079.1,3078.9,0.334366]
[1720556664066,1.70492417,3079.5,3078.9,0.334366]
[1720556664261,1.46680015,3079.4,3078.9,0.334366]
[1720556664454,1.46679465,3079.3,3078.8,3.34366]
[1720556664652,0.34155714,3079.2,3078.8,2.3606]
[1720556664869,0.34155714,3079.1,3078.8,2.3606]
[1720556665065,1.70508119,3079.5,3078.8,2.3606]
[1720556665279,1.46679739,3079.4,3078.8,2.3606]
[1720556665595,1.46679739,3079.3,3078.9,0.23606]
[1720556665777,0.34155847,3079.2,3078.9,0.23606]
[1720556665947,0.34155847,3079.1,3078.9,0.23606]
[1720556666152,1.70508119,3079.5,3079.0,0.259666]
[1720556666351,1.46679413,3079.4,3079.0,0.259666]
[1720556666551,1.46679413,3079.3,3079.0,0.259666]
[1720556666748,0.34155689,3079.2,3079.0,0.259666]
[1720556666988,0.34155689,3079.1,3079.0,0.259666]
[1720556667185,0.34155689,3079.4,3079.0,0.259666]
[1720556667393,1.12523066,3079.3,3079.0,0.259666]
[1720556667587,0.34155689,3079.2,3079.0,0.259666]
[1720556667795,1.7052943,3079.5,3079.0,0.259666]
[1720556667981,1.46678113,3079.4,3079.0,0.259666]
[1720556668183,1.46677969,3079.3,3079.0,0.259666]
[1720556668491,0.34154987,3079.2,3079.1,2.496]
[1720556668851,1.70529327,3079.5,3079.1,2.496]